bitfinex/quotes_BTCUSD_20250303
["timestamp","ask_amount","ask_price","bid_price","bid_amount"]
[1741025084996,0.53597485,90320.0,90319.0,0.03565814]
[1741025085382,0.3,90320.0,90319.0,0.03565814]
[1741025086022,0.521434,90320.0,90319.0,0.03565814]
[1741025086856,0.521434,90320.0,90319.0,0.00011872]
[1741025087572,0.53297411,90320.0,90319.0,0.00011872]
[1741025087819,0.54751496,90320.0,90319.0,0.00011872]
[1741025088144,0.57994763,90320.0,90319.0,0.00011872]
[1741025088341,0.54751496,90320.0,90319.0,0.00011872]
[1741025088545,0.57997646,90320.0,90319.0,0.00011872]
[1741025088767,0.54751496,90320.0,90319.0,0.00011872]
[1741025089590,0.57998257,90320.0,90319.0,0.00011872]
[1741025091399,0.54751496,90320.0,90319.0,0.00011872]
[1741025091950,0.521434,90320.0,90319.0,0.00028882]
[1741025093358,0.53597485,90320.0,90319.0,0.00028882]
[1741025093527,0.56846532,90320.0,90319.0,0.00028882]
[1741025094282,0.55392447,90320.0,90319.0,0.00028882]
[1741025094454,0.3,90320.0,90319.0,0.00028882]
[1741025094653,0.521434,90320.0,90319.0,0.00028882]
[1741025096975,0.55393847,90320.0,90319.0,0.00028882]
[1741025097199,0.521434,90320.0,90319.0,0.00028882]
[1741025097529,0.53597485,90320.0,90319.0,0.00028882]
[1741025098055,0.521434,90320.0,90319.0,0.00028882]
[1741025098402,0.53597485,90320.0,90319.0,0.00028882]
[1741025098605,0.56848154,90320.0,90319.0,0.00028882]
[1741025100285,0.56848154,90320.0,90319.0,8.2e-07]
[1741025100493,0.56848154,90320.0,90309.0,4e-07]
[1741025100494,0.521454,90312.0,90309.0,4e-07]
[1741025100691,0.53599985,90310.0,90309.0,4e-07]
[1741025101026,0.56850654,90310.0,90309.0,4e-07]
[1741025101215,0.221535,90279.0,90278.0,0.36634674]
[1741025101412,0.521535,90279.0,90278.0,0.36634674]
[1741025101637,0.521535,90279.0,90278.0,0.36642569]
[1741025102345,0.52968163,90279.0,90278.0,0.36642569]
[1741025102614,0.54422248,90279.0,90278.0,0.36642569]
[1741025102785,0.55531559,90279.0,90278.0,0.36642569]
[1741025102993,0.221574,90263.0,90247.0,0.00112916]
[1741025103339,0.3,90276.0,90231.0,0.1248702]
[1741025103340,0.221616,90246.0,90245.0,5e-07]
[1741025103543,0.52165,90232.0,90231.0,0.0005702]
[1741025103723,0.60549,90232.0,90231.0,0.0005702]
[1741025103925,0.52167,90224.0,90223.0,0.00107197]
[1741025105485,0.5327711,90224.0,90223.0,0.00011897]
[1741025105907,0.56576016,90224.0,90223.0,0.00011897]
[1741025106314,0.5327711,90224.0,90223.0,0.00011897]
[1741025106531,0.6167711,90224.0,90223.0,0.00011897]
[1741025106686,0.64976016,90224.0,90223.0,0.00011897]
[1741025106903,0.70278781,90224.0,90223.0,0.00011897]
[1741025107109,0.58579875,90224.0,90223.0,0.00011897]
[1741025107311,0.58579875,90224.0,90204.0,0.03065839]
[1741025107312,0.3,90216.0,90204.0,0.03065839]
[1741025107508,0.221717,90205.0,90204.0,0.00011881]
[1741025108381,0.24211225,90205.0,90204.0,0.00011881]
[1741025108523,0.02039525,90205.0,90204.0,0.00011881]
[1741025108724,0.24211225,90205.0,90204.0,0.00011881]
[1741025109517,0.02039525,90205.0,90204.0,0.00011881]
[1741025109913,0.02039525,90205.0,90204.0,0.2524962]
[1741025110363,2.5e-07,90205.0,90204.0,0.2524962]
[1741025110648,2.5e-07,90205.0,90204.0,0.49048567]
[1741025110929,0.504453,90250.0,90231.0,0.25231139]
[1741025111127,0.221611,90249.0,90231.0,0.25231139]
[1741025111363,0.08572,90258.0,90231.0,0.25231139]
[1741025111364,0.282845,90241.0,90231.0,0.03065839]
[1741025111645,0.221632,90240.0,90239.0,0.03065839]
[1741025111855,0.221641,90236.0,90235.0,0.03065839]
[1741025112000,0.221675,90223.0,90222.0,0.03065839]
[1741025112217,0.282845,90232.0,90226.0,0.03065839]
[1741025112417,0.221645,90234.0,90233.0,0.03065839]
[1741025112725,0.221667,90226.0,90225.0,0.03065839]
[1741025113137,0.01239845,90225.0,90201.0,0.221726]
[1741025113343,0.221691,90216.0,90203.0,0.221722]
[1741025113540,0.221691,90216.0,90204.0,0.00077544]
[1741025113780,0.221717,90205.0,90201.0,0.00011881]
[1741025113994,0.282845,90220.0,90188.0,0.0482]
[1741025114193,0.01239845,90225.0,90188.0,0.04832096]
[1741025114393,0.3,90223.0,90188.0,0.04832096]
[1741025114591,0.3,90219.0,90188.0,0.04832096]
[1741025114734,0.221738,90197.0,90188.0,0.04832096]
[1741025114939,0.282845,90210.0,90188.0,0.04832096]
[1741025115149,0.282845,90210.0,90188.0,0.00012096]
[1741025115351,0.221749,90192.0,90188.0,0.00012096]
[1741025115553,0.221756,90189.0,90188.0,0.00012096]
[1741025115756,0.221737,90197.0,90188.0,0.00012096]
[1741025115977,0.282845,90200.0,90188.0,0.00012096]
[1741025116178,0.221756,90189.0,90188.0,0.00012096]
[1741025116559,0.55242123,90189.0,90188.0,0.00012096]
[1741025117246,0.55242123,90189.0,90188.0,9.6e-07]
[1741025117425,0.221808,90168.0,90167.0,0.61413264]
[1741025117712,0.521832,90158.0,90117.0,0.221931]
[1741025117918,0.521832,90158.0,90114.0,0.22194]
[1741025117919,0.52184,90155.0,90136.0,0.00050177]
[1741025118122,0.52184,90155.0,90154.0,0.00753958]
[1741025118257,0.621847,90152.0,90136.0,0.00050177]
[1741025118461,0.521894,90133.0,90089.0,0.0474]
[1741025118716,0.64310923,90133.0,90132.0,0.00029113]
[1741025118949,0.31115908,90133.0,90132.0,0.00029113]
[1741025119093,0.00586945,90149.0,90132.0,0.00029113]
[1741025119293,0.3,90141.0,90132.0,0.00029113]
[1741025119495,0.33615698,90140.0,90132.0,0.00029113]
[1741025119700,0.03421523,90140.0,90132.0,0.00029113]
[1741025119877,0.03615703,90140.0,90132.0,0.00029113]
[1741025120089,0.221885,90137.0,90132.0,0.00029113]
[1741025120453,0.03421523,90137.0,90132.0,0.00029113]
[1741025120768,0.08954185,90136.0,90132.0,0.00029113]
[1741025120891,0.3,90133.0,90132.0,0.00029113]
[1741025121098,0.38752,90133.0,90132.0,0.00029113]
[1741025121298,0.3,90133.0,90132.0,0.00029113]
[1741025122070,0.33421523,90133.0,90132.0,0.00029113]
[1741025122408,0.00586945,90149.0,90132.0,0.00029113]
[1741025122575,0.00586945,90149.0,90148.0,0.221857]
[1741025122916,0.00586945,90149.0,90132.0,0.00029113]
[1741025123342,0.00194153,90148.0,90132.0,0.00029113]
[1741025123540,0.3,90146.0,90132.0,0.00029113]
[1741025123743,0.00194196,90145.0,90132.0,0.00029113]
[1741025123954,0.0882,90144.0,90132.0,0.00029113]
[1741025124153,0.30194171,90143.0,90132.0,0.00029113]
[1741025124352,0.521894,90133.0,90132.0,0.00029113]
[1741025124568,0.3,90133.0,90132.0,0.00029113]
[1741025125177,0.521894,90133.0,90132.0,0.00029113]
[1741025125653,0.3,90133.0,90132.0,0.00029113]
[1741025125829,0.545285,90137.0,90136.0,0.221886]
[1741025125830,0.3234,90137.0,90136.0,0.221886]
[1741025126037,0.08908,90157.0,90132.0,0.00029113]
[1741025126173,0.32534153,90156.0,90132.0,0.00029113]
[1741025126371,0.37619533,90150.0,90132.0,0.00029113]
[1741025126601,0.30586945,90149.0,90132.0,0.00029113]
[1741025127335,0.3,90147.0,90132.0,0.00029113]
[1741025127760,0.00586945,90149.0,90146.0,0.221862]
[1741025127895,0.00586945,90149.0,90148.0,0.221857]
[1741025128094,0.00586945,90149.0,90138.0,0.221881]
[1741025128336,0.00586945,90149.0,90132.0,0.00029113]
[1741025128694,0.3,90146.0,90132.0,0.00029113]
[1741025128950,0.09202139,90148.0,90132.0,0.00029113]
[1741025128951,0.521894,90133.0,90132.0,0.00029113]
[1741025129163,0.3,90133.0,90132.0,0.00029113]
[1741025129519,0.845294,90133.0,90132.0,0.00029113]
[1741025130543,0.85983485,90133.0,90132.0,0.00029113]
[1741025131406,0.53648185,90114.0,90111.0,0.0004]
[1741025131616,0.39024,90114.0,90111.0,0.0004]
[1741025132229,0.3,90113.0,90071.0,0.444493]
[1741025132430,0.37619533,90110.0,90087.0,0.222007]
[1741025132633,0.00194244,90109.0,90088.0,0.222004]
[1741025132861,0.3,90108.0,90081.0,0.22315441]
[1741025133046,0.3,90108.0,90100.0,0.221973]
[1741025133301,0.3,90108.0,90084.0,0.222012]
[1741025133460,0.00194252,90107.0,90072.0,0.222044]
[1741025133664,0.3,90099.0,90071.0,0.00153241]
[1741025133864,0.3,90097.0,90071.0,0.00153241]
[1741025134065,0.222019,90083.0,90071.0,0.00153241]
[1741025134269,0.222044,90072.0,90071.0,0.00153241]
[1741025134469,0.00586945,90080.0,90071.0,0.00253241]
[1741025134689,0.30586945,90080.0,90071.0,0.0004]
[1741025135007,0.30598787,90080.0,90071.0,0.0064]
[1741025135225,0.222043,90073.0,90071.0,0.0064]
[1741025135415,0.30194328,90072.0,90071.0,0.0004]
[1741025135619,0.3,90072.0,90071.0,0.0004]
[1741025135978,0.522044,90072.0,90071.0,0.0004]
[1741025136185,0.222064,90064.0,90063.0,0.00240596]
[1741025136394,0.222081,90057.0,90046.0,7e-05]
[1741025136649,0.3,90058.0,90046.0,7e-05]
[1741025137054,0.09192,90060.0,90046.0,7e-05]
[1741025137261,0.222081,90057.0,90056.0,0.52622129]
[1741025137463,0.3,90057.0,90056.0,0.52622129]
[1741025137662,0.61202185,90057.0,90056.0,0.47637495]
[1741025137917,0.3754,90057.0,90056.0,0.45205118]
[1741025138060,0.3,90057.0,90056.0,0.45205118]
[1741025138914,0.001,90057.0,90056.0,0.45205118]
[1741025139118,0.001,90057.0,90056.0,0.67413518]
[1741025139488,0.001,90057.0,90056.0,0.45205118]
[1741025139891,0.001,90057.0,90056.0,0.67413518]
[1741025140094,0.001,90057.0,90056.0,0.45205118]
[1741025140340,0.001,90057.0,90056.0,0.45222178]
[1741025140546,0.00193637,90068.0,90056.0,0.45222178]
[1741025140747,0.3,90067.0,90056.0,0.45222178]
[1741025140958,0.00194334,90066.0,90056.0,0.45422178]
[1741025141128,0.00194334,90066.0,90056.0,0.45222178]
[1741025141310,0.3,90069.0,90056.0,0.45222178]
[1741025141508,0.09834787,90080.0,90056.0,0.45622178]
[1741025141715,0.30194311,90079.0,90056.0,0.45222178]
[1741025141916,0.3,90079.0,90056.0,0.45222178]
[1741025142163,0.00194315,90078.0,90056.0,0.45322178]
[1741025142342,0.00194315,90078.0,90056.0,0.45222178]
[1741025142869,0.3821832,90080.0,90079.0,0.222027]
[1741025142870,0.00598787,90080.0,90079.0,0.222027]
[1741025143283,0.00598787,90080.0,90056.0,0.45222178]
[1741025143455,0.00598787,90080.0,90079.0,0.222027]
[1741025143636,0.00698787,90080.0,90079.0,0.222027]
[1741025143844,0.00598787,90080.0,90079.0,0.222027]
[1741025144379,0.00598787,90080.0,90079.0,0.227027]
[1741025144945,0.00598787,90080.0,90074.0,0.222038]
[1741025145317,0.00698787,90080.0,90079.0,0.229027]
[1741025146388,0.0003412,90109.0,90079.0,0.4107]
[1741025146591,0.00046034,90109.0,90091.0,0.221997]
[1741025146791,0.00046034,90109.0,90095.0,0.221986]
[1741025146960,0.00046034,90109.0,90079.0,0.4037]
[1741025147163,0.001,90080.0,90079.0,0.625727]
[1741025147892,0.0013412,90109.0,90080.0,0.333037]
[1741025148384,0.0013412,90109.0,90100.0,0.221973]
[1741025148578,0.00146034,90109.0,90093.0,0.22199]
[1741025148813,0.00146034,90109.0,90102.0,0.22197]
[1741025149073,0.00146034,90109.0,90104.0,0.221964]
[1741025149293,0.00146034,90109.0,90098.0,0.221979]
[1741025149476,0.00146034,90109.0,90096.0,0.221984]
[1741025149681,0.00146034,90109.0,90079.0,0.0852]
[1741025149893,0.00146034,90109.0,90079.0,0.003]
[1741025150093,0.3,90102.0,90079.0,0.003]
[1741025150267,0.67619533,90100.0,90079.0,0.003]
[1741025150470,0.67619533,90100.0,90062.0,0.00113241]
[1741025150471,0.3,90098.0,90062.0,0.22320041]
[1741025150651,0.00194291,90097.0,90080.0,0.002]
[1741025150852,0.00194287,90098.0,90080.0,0.002]
[1741025151052,0.37619533,90090.0,90056.0,0.45222178]
[1741025151256,0.3,90079.0,90056.0,0.45222178]
[1741025151489,0.222033,90077.0,90056.0,0.45222178]
[1741025151664,0.3,90079.0,90056.0,0.45222178]
[1741025151977,0.09264,90095.0,90088.0,0.222005]
[1741025152317,0.09264,90095.0,90090.0,0.221998]
[1741025152606,0.09264,90095.0,90090.0,0.221999]
[1741025152739,0.09264,90095.0,90079.0,0.0001706]
[1741025153298,0.3237412,90109.0,90079.0,0.0001706]
[1741025153299,0.00817194,90108.0,90079.0,0.0001706]
[1741025153475,0.0003412,90109.0,90089.0,0.22]
[1741025153661,0.0003412,90109.0,90086.0,0.222008]
[1741025153843,0.00228362,90109.0,90086.0,0.222008]
[1741025154050,0.0003412,90109.0,90095.0,0.221987]
[1741025154267,0.00228349,90109.0,90079.0,0.0041706]
[1741025154504,0.00228349,90109.0,90079.0,0.0001706]
[1741025154505,0.30228349,90109.0,90079.0,0.0001706]
[1741025154660,0.3003412,90109.0,90079.0,0.0001706]
[1741025154871,0.31740431,90102.0,90089.0,0.005]
[1741025155086,0.3,90099.0,90079.0,0.0001706]
[1741025155292,0.3,90104.0,90079.0,0.0001706]
[1741025155589,0.3,90104.0,90098.0,0.22198]
[1741025155772,0.3,90104.0,90091.0,0.221997]
[1741025155967,0.3,90104.0,90085.0,0.22201]
[1741025156508,0.0013412,90109.0,90079.0,0.0001706]
[1741025156812,0.00194246,90108.0,90084.0,0.222013]
[1741025157034,0.00194246,90108.0,90086.0,0.222008]
[1741025157314,0.0003412,90109.0,90079.0,0.0001706]
[1741025157518,0.0023412,90109.0,90084.0,0.222013]
[1741025157874,0.00246034,90109.0,90090.0,0.221997]
[1741025158098,0.001,90108.0,90092.0,0.221994]
[1741025158290,0.00046034,90109.0,90099.0,0.221977]
[1741025158419,0.01740319,90105.0,90086.0,0.0455]
[1741025158817,0.30046034,90109.0,90079.0,0.0021706]
[1741025159020,0.30046034,90109.0,90079.0,0.0001706]
[1741025159248,0.3,90107.0,90079.0,0.0001706]
[1741025159454,0.3,90107.0,90083.0,0.222017]
[1741025159751,0.3,90107.0,90079.0,0.0001706]
[1741025160340,0.00194232,90106.0,90092.0,0.001]
[1741025160594,0.30046034,90109.0,90084.0,0.222013]
[1741025160827,0.30046034,90109.0,90079.0,0.0001706]
[1741025160828,0.00194232,90108.0,90079.0,0.0001706]
[1741025161061,0.37619533,90100.0,90079.0,0.0021706]
[1741025161294,0.30046034,90109.0,90088.0,0.222004]
[1741025161527,0.00194247,90108.0,90079.0,0.0001706]
[1741025161797,0.3,90099.0,90092.0,0.001]
[1741025162041,0.3,90099.0,90079.0,0.0001706]
[1741025162042,0.222024,90080.0,90079.0,0.0001706]
[1741025162280,0.222066,90063.0,90062.0,0.00113241]
[1741025162523,0.222081,90057.0,90056.0,0.31973958]
[1741025162759,0.614121,90057.0,90056.0,0.23858687]
[1741025163275,0.4035137,90057.0,90056.0,0.23898466]
[1741025163526,0.42092671,90057.0,90056.0,0.23898466]
[1741025163726,0.63153401,90057.0,90056.0,0.23898466]
[1741025164246,0.6021295,90057.0,90056.0,0.23898466]
[1741025164480,0.6021295,90057.0,90056.0,0.20555321]
[1741025164882,0.61667035,90057.0,90056.0,0.20555321]
[1741025165082,0.61667035,90057.0,90056.0,0.17212176]
[1741025165284,1.15198679,90057.0,90056.0,0.17212176]
[1741025165502,1.04307035,90057.0,90056.0,0.13869031]
[1741025165689,0.222106,90047.0,90041.0,0.0001706]
[1741025165848,0.22250314,90047.0,90041.0,0.0001706]
[1741025166282,0.23992053,90047.0,90041.0,0.0001706]
[1741025166443,0.55446138,90047.0,90041.0,0.0001706]
[1741025166830,0.31781453,90047.0,90041.0,0.0001706]
[1741025167029,0.53992053,90047.0,90041.0,0.0001706]
[1741025167239,0.3,90046.0,90000.0,0.01487319]
[1741025167394,0.222173,90020.0,90000.0,0.01487319]
[1741025167598,0.00194446,90019.0,90000.0,0.01487319]
[1741025168058,0.37702141,90010.0,90000.0,0.01487319]
[1741025168245,0.01741875,90016.0,90002.0,0.222215]
[1741025168444,0.01741875,90016.0,90000.0,0.01587319]
[1741025168658,0.01741875,90016.0,90005.0,0.222209]
[1741025168860,0.01741875,90016.0,90000.0,0.01587319]
[1741025169065,0.01781564,90016.0,90000.0,0.01587319]
[1741025169640,0.01781564,90016.0,90000.0,0.01487319]
[1741025169805,0.01781564,90016.0,90000.0,0.01687319]
[1741025170005,0.01781564,90016.0,90000.0,0.01487319]
[1741025170206,0.22219,90013.0,90000.0,0.01487319]
[1741025170407,0.3,90009.0,90000.0,0.01787319]
[1741025170645,0.222219,90001.0,90000.0,0.01487319]
[1741025170852,0.39148,90001.0,90000.0,0.01487319]
[1741025171080,0.3,90001.0,90000.0,0.01587319]
[1741025171282,0.01742222,90001.0,90000.0,0.01587319]
[1741025171613,0.00194456,90006.0,90000.0,0.01587319]
[1741025171789,0.22415356,90006.0,90000.0,0.01587319]
[1741025171994,0.222219,90001.0,90000.0,0.01487319]
[1741025172600,0.522219,90001.0,90000.0,0.01487319]
[1741025172917,0.522249,89989.0,89988.0,0.0001701]
[1741025173278,0.522249,89989.0,89955.0,0.0001701]
[1741025173279,0.3,89969.0,89955.0,0.0001701]
[1741025173621,0.522358,89945.0,89944.0,0.43732758]
[1741025173760,0.53078712,89945.0,89944.0,0.34022446]
[1741025173963,0.56500235,89945.0,89944.0,0.29788356]
[1741025174161,0.7794712,89945.0,89944.0,0.15964178]
[1741025174370,0.01454085,89911.0,89875.0,0.09875748]
[1741025174570,0.37702141,89895.0,89875.0,0.09875748]
[1741025174768,0.00194726,89894.0,89875.0,0.09875748]
[1741025174966,0.11984464,89911.0,89875.0,0.09875748]
[1741025174967,0.37702141,89910.0,89875.0,0.09875748]
[1741025175172,0.0962,89909.0,89875.0,0.09875748]
[1741025175392,0.0962,89909.0,89871.0,0.0004]
[1741025175592,0.00827287,89915.0,89871.0,0.0004]
[1741025175797,0.09826676,89914.0,89875.0,0.0804]
[1741025176012,0.37741757,89910.0,89875.0,0.0804]
[1741025176219,0.222456,89906.0,89877.0,0.222525]
[1741025176497,0.00039616,89910.0,89871.0,0.0004]
[1741025176693,0.001,89895.0,89887.0,0.222501]
[1741025176996,0.00194665,89909.0,89871.0,0.0004]
[1741025177162,0.37702141,89900.0,89872.0,0.222538]
[1741025177370,0.00194703,89899.0,89871.0,0.0004]
[1741025177585,0.00194703,89899.0,89882.0,0.0138409]
[1741025177586,0.30194703,89899.0,89882.0,0.0138409]
[1741025177894,0.001,89895.0,89882.0,0.0138409]
[1741025178025,0.001,89895.0,89892.0,0.222487]
[1741025178255,0.001,89895.0,89860.0,0.0011337]
[1741025178256,0.1,89880.0,89844.0,0.41866]
[1741025178447,0.1,89880.0,89858.0,0.222573]
[1741025178647,0.1,89880.0,89844.0,0.09716]
[1741025178975,0.1,89880.0,89841.0,0.1]
[1741025179126,0.1,89881.0,89840.0,0.333926]
[1741025179329,0.1,89881.0,89835.0,0.09712]
[1741025179534,0.1,89859.0,89833.0,0.33033613]
[1741025179943,0.1,89860.0,89843.0,0.222609]
[1741025180149,0.1,89867.0,89833.0,0.33033613]
[1741025180359,0.1,89860.0,89850.0,0.222592]
[1741025180559,0.1,89861.0,89833.0,0.33033613]
[1741025180767,0.1,89876.0,89869.0,0.222544]
[1741025180980,0.1,89876.0,89852.0,0.222588]
[1741025181184,0.1,89876.0,89868.0,0.222547]
[1741025181382,0.1,89880.0,89834.0,0.494062]
[1741025181589,0.1,89876.0,89834.0,0.0488]
[1741025181787,0.1,89876.0,89859.0,0.22257]
[1741025181788,0.001,89860.0,89859.0,0.22257]
[1741025182031,0.001,89860.0,89852.0,0.222587]
[1741025182216,0.001,89860.0,89835.0,0.22263]
[1741025182413,0.001,89860.0,89836.0,0.222627]
[1741025182636,0.001,89860.0,89844.0,0.222607]
[1741025182833,0.001,89860.0,89834.0,0.0488]
[1741025183165,0.02587859,89866.0,89838.0,0.22262]
[1741025183309,0.1,89870.0,89834.0,0.0488]
[1741025183646,0.01744799,89854.0,89853.0,0.222585]
[1741025184211,0.0477,89927.0,89899.0,0.22247]
[1741025184584,0.10576658,89924.0,89888.0,0.099]
[1741025184795,0.09725728,89924.0,89923.0,0.222412]
[1741025185122,0.09765344,89924.0,89923.0,0.222412]
[1741025185624,0.09765344,89924.0,89923.0,0.321412]
[1741025185849,0.00039616,89924.0,89923.0,0.321412]
[1741025186049,0.00039616,89924.0,89923.0,0.222412]
[1741025186274,0.00039616,89924.0,89911.0,0.222442]
[1741025186493,0.00039616,89924.0,89897.0,0.099]
[1741025186698,0.00139616,89924.0,89923.0,0.007]
[1741025187001,0.00039616,89924.0,89897.0,0.099]
[1741025187228,0.1,89915.0,89891.0,0.0495]
[1741025187371,0.001,89911.0,89880.0,0.00113353]
[1741025187571,0.001,89906.0,89882.0,0.222511]
[1741025187773,0.001,89906.0,89873.0,0.0815]
[1741025188084,0.00139616,89924.0,89882.0,0.099]
[1741025188276,0.1,89922.0,89907.0,0.22245]
[1741025188509,0.1,89922.0,89909.0,0.222445]
[1741025188710,0.00139616,89924.0,89923.0,0.222412]
[1741025189045,0.00139616,89924.0,89876.0,0.3]
[1741025189046,0.00139616,89924.0,89882.0,0.099]
[1741025189250,0.00139616,89924.0,89877.0,0.3215]
[1741025189251,0.001,89916.0,89877.0,0.3215]
[1741025189386,0.003,89915.0,89877.0,0.3215]
[1741025189609,0.002,89915.0,89882.0,0.099]
[1741025189806,0.002,89915.0,89882.0,0.0001709]
[1741025190011,0.002,89915.0,89895.0,0.22248]
[1741025190215,0.1,89920.0,89888.0,0.099]
[1741025190420,0.00073796,89924.0,89888.0,0.099]
[1741025190617,0.00073796,89924.0,89919.0,0.222422]
[1741025190819,0.00073796,89924.0,89895.0,0.099]
[1741025191105,0.00073796,89924.0,89917.0,0.222426]
[1741025191261,0.00073796,89924.0,89923.0,0.222412]
[1741025191829,0.00073796,89924.0,89921.0,0.222416]
[1741025192048,0.00073796,89924.0,89923.0,0.222412]
[1741025192259,0.00073796,89924.0,89900.0,0.47462141]
[1741025192456,0.00073796,89924.0,89899.0,0.0768]
[1741025192874,0.00173796,89924.0,89923.0,0.007]
[1741025193037,0.00173796,89924.0,89899.0,0.0768]
[1741025193241,0.00173796,89924.0,89896.0,0.3215]
[1741025193483,0.00173796,89924.0,89908.0,0.006]
[1741025193484,0.00373796,89924.0,89908.0,0.006]
[1741025193696,0.1,89914.0,89882.0,0.0001709]
[1741025193919,0.001,89910.0,89885.0,0.222505]
[1741025194149,0.001,89910.0,89888.0,0.222496]
[1741025194386,0.1,89918.0,89882.0,0.0001709]
[1741025194624,0.1,89914.0,89890.0,0.222493]
[1741025194869,0.1,89914.0,89882.0,0.0001709]
[1741025194870,0.001,89913.0,89882.0,0.0001709]
[1741025195595,0.001,89906.0,89882.0,0.0001709]
[1741025195953,0.001,89897.0,89882.0,0.0001709]
[1741025196357,0.001,89897.0,89882.0,0.0031709]
[1741025196611,0.001,89897.0,89882.0,0.0001709]
[1741025196958,0.001,89897.0,89884.0,0.222508]
[1741025197372,0.00139591,89897.0,89882.0,0.0001709]
[1741025197812,0.001,89895.0,89882.0,0.0001709]
[1741025198122,0.00039591,89897.0,89883.0,0.222511]
[1741025198123,0.001,89894.0,89883.0,0.222511]
[1741025198466,0.00039591,89897.0,89896.0,0.222479]
[1741025198796,9.1e-07,89897.0,89896.0,0.222479]
[1741025199299,9.1e-07,89897.0,89896.0,0.221479]
[1741025199727,9.1e-07,89897.0,89896.0,0.228479]
[1741025199927,0.00100091,89897.0,89896.0,0.228479]
[1741025200148,0.00100091,89897.0,89884.0,0.0766]
[1741025200322,0.00100091,89897.0,89896.0,0.229479]
[1741025200523,0.00200091,89897.0,89896.0,0.229479]
[1741025200745,0.00200091,89897.0,89896.0,0.007]
[1741025201168,0.00200091,89897.0,89896.0,0.229479]
[1741025201345,0.00200091,89897.0,89896.0,0.007]
[1741025201554,9.1e-07,89897.0,89882.0,0.2226829]
[1741025201953,9.1e-07,89897.0,89896.0,0.007]
[1741025202154,9.1e-07,89897.0,89896.0,0.229479]
[1741025202358,9.1e-07,89897.0,89896.0,0.014]
[1741025202706,0.32347691,89897.0,89896.0,0.014]
[1741025203030,0.10000091,89897.0,89896.0,0.014]
[1741025203206,0.001,89885.0,89882.0,0.0001709]
[1741025203561,0.001,89885.0,89882.0,0.0061709]
[1741025203964,0.323511,89883.0,89882.0,0.0061709]
[1741025204184,0.101,89883.0,89882.0,0.0061709]
[1741025204604,0.10294719,89883.0,89882.0,0.0061709]
[1741025204748,0.101,89883.0,89882.0,0.0001709]
[1741025205363,0.1029471,89883.0,89882.0,0.0001709]
[1741025205601,0.1039471,89883.0,89882.0,0.0001709]
[1741025205760,0.102,89883.0,89882.0,0.0001709]
[1741025206186,0.101,89883.0,89882.0,0.0001709]
[1741025206586,0.1039473,89883.0,89882.0,0.0001709]
[1741025206755,0.102,89883.0,89882.0,0.0001709]
[1741025207252,0.102,89883.0,89869.0,0.222545]
[1741025207519,0.001,89883.0,89844.0,0.099]
[1741025207760,9.1e-07,89897.0,89896.0,0.222479]
[1741025208519,9.1e-07,89897.0,89896.0,0.37996435]
[1741025208754,5.1e-07,89924.0,89923.0,0.222412]
[1741025208973,5.1e-07,89924.0,89923.0,0.321412]
[1741025209176,0.1,89970.0,89936.0,0.099]
[1741025209530,0.222232,89996.0,89951.0,0.16701718]
[1741025209531,0.09725728,89952.0,89951.0,0.16701718]
[1741025209823,2.8e-07,89952.0,89951.0,0.16701718]
[1741025210122,2.8e-07,89952.0,89951.0,0.26601718]
[1741025210316,2.8e-07,89952.0,89951.0,0.16701718]
[1741025210523,2.8e-07,89952.0,89951.0,0.1671356]
[1741025211083,2.8e-07,89952.0,89951.0,0.22246142]
[1741025211697,0.00100028,89952.0,89951.0,0.00711842]
[1741025211884,0.00100028,89952.0,89951.0,0.00011842]
[1741025212308,0.00200028,89952.0,89951.0,0.00711842]
[1741025212508,0.002,89952.0,89951.0,0.22946142]
[1741025213181,0.001,89996.0,89951.0,0.00011842]
[1741025213505,0.05,90000.0,89992.0,0.22224]
[1741025213692,0.05,90000.0,89960.0,0.47602141]
[1741025213693,0.01742621,89985.0,89984.0,0.222261]
[1741025213850,0.05,90000.0,89969.0,0.0982]
[1741025214055,0.1004,89999.0,89969.0,0.0982]
[1741025214258,0.1004,89999.0,89962.0,0.3215]
[1741025214259,0.0174232,89985.0,89962.0,0.3215]
[1741025214462,0.0174232,89985.0,89962.0,0.3205]
[1741025214463,0.001,89984.0,89962.0,0.3205]
[1741025214640,0.0174232,89985.0,89962.0,0.3205]
[1741025214984,0.0174232,89985.0,89966.0,0.222305]
[1741025215193,0.0174232,89985.0,89969.0,0.005]
[1741025215328,0.0174232,89985.0,89962.0,0.32061842]
[1741025215731,0.0174232,89985.0,89984.0,0.222261]
[1741025216374,0.0004,89999.0,89988.0,0.222249]
[1741025216587,0.0004,89999.0,89998.0,0.222227]
[1741025216997,0.0004,89999.0,89998.0,0.542727]
[1741025217624,0.0004,89999.0,89998.0,0.641727]
[1741025218046,0.0007964,89999.0,89998.0,0.537727]
[1741025218487,0.0007964,89999.0,89998.0,0.544727]
[1741025219296,0.0007964,89999.0,89998.0,0.537727]
[1741025219495,0.0007964,89999.0,89998.0,0.544727]
[1741025220157,0.000341,90014.0,89998.0,0.544727]
[1741025220158,7.6e-07,90001.0,90000.0,0.321222]
[1741025220422,8e-07,90014.0,90013.0,0.32119]
[1741025220659,8e-07,90014.0,90013.0,0.94380501]
[1741025220829,8e-07,90014.0,90013.0,0.84504501]
[1741025221089,8e-07,90014.0,90013.0,0.54269]
[1741025222247,8e-07,90014.0,90013.0,0.22219]
[1741025222455,0.01741523,90014.0,90013.0,0.22219]
[1741025222655,0.01741523,90014.0,90013.0,0.54269]
[1741025222880,2.3e-07,90014.0,90013.0,0.96558586]
[1741025223085,2.3e-07,90014.0,90013.0,1.25858586]
[1741025223294,0.00028238,90039.0,90038.0,0.222128]
[1741025223487,0.00028238,90039.0,90030.0,0.41962]
[1741025223698,0.00028238,90039.0,90030.0,0.3205]
[1741025223865,0.00028238,90039.0,90016.0,0.09908]
[1741025224071,0.00028238,90039.0,89997.0,0.099]
[1741025224249,0.00028238,90039.0,90038.0,0.222128]
[1741025225200,0.00028238,90039.0,90036.0,0.222131]
[1741025225417,0.00028238,90039.0,90002.0,0.09912]
[1741025225561,0.1,90029.0,90001.0,0.00011842]